[Event "2026 Biel Blitz Open"]
[Site "Biel, CH"]
[Date "2026.07.19"]
[Round "1"]
[White "Delesenne, Arthur"]
[Black "Fogo Esquivel, Levi Kalani Alexander"]
[Result "0-1"]
[Board "22"]
[TimeControl "180+2"]
[WhiteFideId "276979"]
[BlackFideId "5183189"]
[WhiteElo "1789"]
[BlackElo "2219"]
[BlackTitle "FM"]
[WhiteClock "0:00:12"]
[BlackClock "0:01:03"]
[Variant "Standard"]
[EndDate "2026.07.19"]
[EndTime "11:47:32"]

1. e4 {[%clk 0:03:03]}  e5 {[%clk 0:03:02]} 2. Nf3 {[%clk 0:03:05]}  d5 {[%clk 0:03:03]} 3. exd5 {[%clk 0:03:04]}  e4 {[%clk 0:03:04]}
4. Qe2 {[%clk 0:03:05]}  Nf6 {[%clk 0:03:04]} 5. d3 {[%clk 0:03:02]}  Qxd5 {[%clk 0:03:05]} 6. Nc3 {[%clk 0:02:47]}  Bb4 {[%clk 0:03:06]}
7. Bd2 {[%clk 0:02:46]}  Bxc3 {[%clk 0:03:07]} 8. Bxc3 {[%clk 0:02:44]}  O-O {[%clk 0:03:07]} 9. dxe4 {[%clk 0:02:37]}  Nxe4 {[%clk 0:03:08]}
10. Rd1 {[%clk 0:02:22]}  Qf5 {[%clk 0:03:07]} 11. Qe3 {[%clk 0:02:09]}  Nxc3 {[%clk 0:03:03]} 12. Qxc3 {[%clk 0:02:10]}  Re8+ {[%clk 0:03:01]}
13. Be2 {[%clk 0:02:11]}  Nc6 {[%clk 0:03:01]} 14. Rd2 {[%clk 0:01:49]}  Qb5 {[%clk 0:02:30]} 15. Qd3 {[%clk 0:01:23]}  Qxb2 {[%clk 0:02:19]}
16. O-O {[%clk 0:01:22]}  Bg4 {[%clk 0:02:19]} 17. c4 {[%clk 0:01:21]}  Qf6 {[%clk 0:02:16]} 18. Qb3 {[%clk 0:01:12]}  b6 {[%clk 0:02:09]}
19. h3 {[%clk 0:00:53]}  Bh5 {[%clk 0:02:03]} 20. Bd1 {[%clk 0:00:36]}  Rad8 {[%clk 0:02:01]} 21. Rxd8 {[%clk 0:00:34]}  Rxd8 {[%clk 0:02:02]}
22. g4 {[%clk 0:00:24]}  Bg6 {[%clk 0:02:01]} 23. Qe3 {[%clk 0:00:21]}  h6 {[%clk 0:01:57]} 24. Re1 {[%clk 0:00:20]}  Rd3 {[%clk 0:01:51]}
25. Qe8+ {[%clk 0:00:18]}  Kh7 {[%clk 0:01:52]} 26. Kg2 {[%clk 0:00:14]}  Rd8 {[%clk 0:01:40]} 27. Qe3 {[%clk 0:00:14]}  Rd3 {[%clk 0:01:25]}
28. Qe8 {[%clk 0:00:13]}  Rd6 {[%clk 0:01:01]} 29. Ne5 {[%clk 0:00:12]}  Nxe5 {[%clk 0:01:00]} 30. Qxe5 {[%clk 0:00:12]}  Qxe5 {[%clk 0:01:01]}
31. Rxe5 {[%clk 0:00:12]}  Rxd1 {[%clk 0:01:03]} 0-1

[Event "2026 Biel Blitz Open"]
[Site "Biel, CH"]
[Date "2026.07.19"]
[Round "1"]
[White "Rohrer, Christophe"]
[Black "Trubini, Timon"]
[Result "1-0"]
[Board "23"]
[TimeControl "180+2"]
[WhiteFideId "1326546"]
[BlackFideId "1347799"]
[WhiteElo "2216"]
[BlackElo "1788"]
[WhiteTitle "FM"]
[WhiteClock "0:01:46"]
[BlackClock "0:01:40"]
[Variant "Standard"]
[EndDate "2026.07.19"]
[EndTime "11:47:32"]

1. e4 {[%clk 0:03:02]}  d5 {[%clk 0:03:03]} 2. exd5 {[%clk 0:03:04]}  Qxd5 {[%clk 0:03:04]} 3. Nc3 {[%clk 0:03:05]}  Qd8 {[%clk 0:03:05]}
4. d4 {[%clk 0:03:06]}  Nf6 {[%clk 0:03:06]} 5. Nf3 {[%clk 0:03:06]}  Bg4 {[%clk 0:03:06]} 6. h3 {[%clk 0:02:58]}  Bh5 {[%clk 0:03:07]}
7. g4 {[%clk 0:02:59]}  Bg6 {[%clk 0:03:08]} 8. Ne5 {[%clk 0:02:55]}  e6 {[%clk 0:03:07]} 9. Bg2 {[%clk 0:02:45]}  c6 {[%clk 0:03:07]}
10. O-O {[%clk 0:02:39]}  Nbd7 {[%clk 0:03:07]} 11. Qe2 {[%clk 0:02:31]}  Nxe5 {[%clk 0:03:01]} 12. dxe5 {[%clk 0:02:29]}  Nd5 {[%clk 0:03:01]}
13. Ne4 {[%clk 0:02:26]}  Be7 {[%clk 0:02:50]} 14. c4 {[%clk 0:02:27]}  Nb6 {[%clk 0:02:42]} 15. Rd1 {[%clk 0:02:25]}  Qc7 {[%clk 0:02:42]}
16. Nd6+ {[%clk 0:02:24]}  Bxd6 {[%clk 0:02:39]} 17. exd6 {[%clk 0:02:25]}  Qd7 {[%clk 0:02:39]} 18. c5 {[%clk 0:02:11]}  Nd5 {[%clk 0:02:39]}
19. Bxd5 {[%clk 0:02:07]}  cxd5 {[%clk 0:02:40]} 20. Rxd5 {[%clk 0:02:08]}  O-O {[%clk 0:02:38]} 21. Rd1 {[%clk 0:02:07]}  Qc6 {[%clk 0:02:25]}
22. b4 {[%clk 0:01:55]}  Be4 {[%clk 0:02:24]} 23. b5 {[%clk 0:01:50]}  Bf3 {[%clk 0:02:10]} 24. bxc6 {[%clk 0:01:44]}  Bxe2 {[%clk 0:02:10]}
25. Rd2 {[%clk 0:01:44]}  Bf3 {[%clk 0:02:03]} 26. c7 {[%clk 0:01:44]}  Bc6 {[%clk 0:02:00]} 27. d7 {[%clk 0:01:45]}  Bxd7 {[%clk 0:01:45]}
28. Rxd7 {[%clk 0:01:46]}  Rac8 {[%clk 0:01:46]} 29. Bf4 {[%clk 0:01:45]}  b6 {[%clk 0:01:43]} 30. c6 {[%clk 0:01:45]}  h6 {[%clk 0:01:38]}
31. Rad1 {[%clk 0:01:46]}  Kh7 {[%clk 0:01:40]} 32. Rd8 {[%clk 0:01:46]} 1-0

[Event "2026 Biel Blitz Open"]
[Site "Biel, CH"]
[Date "2026.07.19"]
[Round "1"]
[White "Gautier, Anand"]
[Black "Boyer, Jean-Francois"]
[Result "1-0"]
[Board "25"]
[TimeControl "180+2"]
[WhiteFideId "26010186"]
[BlackFideId "650226"]
[WhiteElo "2198"]
[BlackElo "1777"]
[WhiteTitle "FM"]
[WhiteClock "0:02:09"]
[BlackClock "0:00:58"]
[Variant "Standard"]
[EndDate "2026.07.19"]
[EndTime "11:47:32"]

1. e4 {[%clk 0:03:02]}  e5 {[%clk 0:03:03]} 2. Nf3 {[%clk 0:03:03]}  Nc6 {[%clk 0:03:03]} 3. Bc4 {[%clk 0:03:04]}  Nf6 {[%clk 0:03:04]}
4. d3 {[%clk 0:03:05]}  Be7 {[%clk 0:03:03]} 5. O-O {[%clk 0:03:05]}  O-O {[%clk 0:02:58]} 6. a4 {[%clk 0:03:06]}  d6 {[%clk 0:02:56]}
7. a5 {[%clk 0:03:07]}  b6 {[%clk 0:02:50]} 8. a6 {[%clk 0:02:59]}  Bg4 {[%clk 0:02:49]} 9. h3 {[%clk 0:02:58]}  Bxf3 {[%clk 0:02:40]}
10. Qxf3 {[%clk 0:02:59]}  Nd4 {[%clk 0:02:40]} 11. Qd1 {[%clk 0:03:00]}  b5 {[%clk 0:02:41]} 12. Ba2 {[%clk 0:02:59]}  c5 {[%clk 0:02:40]}
13. Bg5 {[%clk 0:02:54]}  h6 {[%clk 0:02:34]} 14. Bxf6 {[%clk 0:02:55]}  Bxf6 {[%clk 0:02:35]} 15. Nc3 {[%clk 0:02:54]}  b4 {[%clk 0:02:25]}
16. Nd5 {[%clk 0:02:55]}  Rb8 {[%clk 0:02:18]} 17. Bc4 {[%clk 0:02:54]}  Nc6 {[%clk 0:02:09]} 18. Kh1 {[%clk 0:02:48]}  g5 {[%clk 0:02:04]}
19. Qh5 {[%clk 0:02:33]}  Bg7 {[%clk 0:02:04]} 20. Ne3 {[%clk 0:02:31]}  Ne7 {[%clk 0:01:58]} 21. Ng4 {[%clk 0:02:23]}  Kh7 {[%clk 0:01:58]}
22. Bxf7 {[%clk 0:02:19]}  Rxf7 {[%clk 0:01:47]} 23. Qxf7 {[%clk 0:02:19]}  Ng6 {[%clk 0:01:45]} 24. Ne3 {[%clk 0:02:06]}  h5 {[%clk 0:01:32]}
25. Nf5 {[%clk 0:02:06]}  Qf6 {[%clk 0:01:27]} 26. Qxa7 {[%clk 0:02:05]}  Rf8 {[%clk 0:01:21]} 27. Qxg7+ {[%clk 0:02:05]}  Qxg7 {[%clk 0:01:20]}
28. Nxg7 {[%clk 0:02:06]}  Kxg7 {[%clk 0:01:20]} 29. a7 {[%clk 0:02:07]}  Ra8 {[%clk 0:01:19]} 30. Ra6 {[%clk 0:02:08]}  Nf8 {[%clk 0:01:12]}
31. Rfa1 {[%clk 0:02:09]}  Kf7 {[%clk 0:01:11]} 32. Rb6 {[%clk 0:02:09]}  Nd7 {[%clk 0:01:11]} 33. Rxd6 {[%clk 0:02:09]}  Ke7 {[%clk 0:01:12]}
34. Rg6 {[%clk 0:02:10]}  g4 {[%clk 0:01:11]} 35. hxg4 {[%clk 0:02:10]}  hxg4 {[%clk 0:01:11]} 36. Rxg4 {[%clk 0:02:11]}  Kd6 {[%clk 0:01:06]}
37. g3 {[%clk 0:02:10]}  Kc7 {[%clk 0:01:06]} 38. Kg2 {[%clk 0:02:10]}  Nb6 {[%clk 0:00:59]} 39. Rg7+ {[%clk 0:02:08]}  Nd7 {[%clk 0:00:55]}
40. f4 {[%clk 0:02:09]}  exf4 {[%clk 0:00:58]} 41. gxf4 {[%clk 0:02:09]} 1-0

[Event "2026 Biel Blitz Open"]
[Site "Biel, CH"]
[Date "2026.07.19"]
[Round "1"]
[White "Tcheau, Alain"]
[Black "Schweizer, Simon"]
[Result "1-0"]
[Board "26"]
[TimeControl "180+2"]
[WhiteFideId "1306014"]
[BlackFideId "1325361"]
[WhiteElo "1777"]
[BlackElo "2182"]
[WhiteClock "0:00:27"]
[BlackClock "0:01:16"]
[Variant "Standard"]
[EndDate "2026.07.19"]
[EndTime "11:47:32"]

1. d4 {[%clk 0:03:01]}  Nf6 {[%clk 0:03:03]} 2. c3 {[%clk 0:03:02]}  d5 {[%clk 0:03:03]} 3. Nf3 {[%clk 0:03:02]}  g6 {[%clk 0:03:03]}
4. Bf4 {[%clk 0:03:03]}  Bg7 {[%clk 0:03:04]} 5. h3 {[%clk 0:03:03]}  O-O {[%clk 0:03:05]} 6. e3 {[%clk 0:03:04]}  c5 {[%clk 0:03:06]}
7. Bd3 {[%clk 0:03:05]}  Nc6 {[%clk 0:03:07]} 8. O-O {[%clk 0:03:04]}  Nd7 {[%clk 0:03:07]} 9. Bg3 {[%clk 0:03:01]}  e5 {[%clk 0:03:08]}
10. dxe5 {[%clk 0:03:02]}  Ndxe5 {[%clk 0:03:09]} 11. Be2 {[%clk 0:03:01]}  Be6 {[%clk 0:03:07]} 12. Nbd2 {[%clk 0:03:02]}  Re8 {[%clk 0:03:04]}
13. Nxe5 {[%clk 0:03:02]}  Nxe5 {[%clk 0:03:05]} 14. Nf3 {[%clk 0:03:03]}  Nc6 {[%clk 0:03:06]} 15. Qc2 {[%clk 0:03:03]}  a6 {[%clk 0:03:04]}
16. a3 {[%clk 0:03:04]}  Qe7 {[%clk 0:03:01]} 17. Rad1 {[%clk 0:03:04]}  Rac8 {[%clk 0:03:02]} 18. Qb1 {[%clk 0:02:59]}  h6 {[%clk 0:02:58]}
19. Rfe1 {[%clk 0:02:59]}  g5 {[%clk 0:02:53]} 20. Bf1 {[%clk 0:02:53]}  f5 {[%clk 0:02:50]} 21. Nd2 {[%clk 0:02:41]}  Qf8 {[%clk 0:02:45]}
22. Bd3 {[%clk 0:02:41]}  Ne5 {[%clk 0:02:42]} 23. Be2 {[%clk 0:02:41]}  b5 {[%clk 0:02:39]} 24. Bh5 {[%clk 0:02:41]}  Red8 {[%clk 0:02:39]}
25. f4 {[%clk 0:02:34]}  Nc6 {[%clk 0:02:33]} 26. Nf3 {[%clk 0:02:29]}  Bf6 {[%clk 0:02:30]} 27. Ne5 {[%clk 0:02:23]}  Nxe5 {[%clk 0:02:24]}
28. fxe5 {[%clk 0:02:24]}  Be7 {[%clk 0:02:24]} 29. Be2 {[%clk 0:02:07]}  Qg7 {[%clk 0:02:18]} 30. Bd3 {[%clk 0:02:02]}  Rf8 {[%clk 0:02:18]}
31. Rf1 {[%clk 0:02:03]}  Qg6 {[%clk 0:02:14]} 32. Bh2 {[%clk 0:02:04]}  g4 {[%clk 0:02:12]} 33. hxg4 {[%clk 0:01:53]}  Qxg4 {[%clk 0:02:12]}
34. Rf3 {[%clk 0:01:45]}  Kh8 {[%clk 0:02:13]} 35. Rdf1 {[%clk 0:01:31]}  Rg8 {[%clk 0:02:14]} 36. Qc2 {[%clk 0:01:17]}  Rcf8 {[%clk 0:01:53]}
37. Bf4 {[%clk 0:01:17]}  Bg5 {[%clk 0:01:52]} 38. Rg3 {[%clk 0:01:10]}  Bxf4 {[%clk 0:01:48]} 39. Rxg4 {[%clk 0:01:03]}  Bxe3+ {[%clk 0:01:49]}
40. Kh1 {[%clk 0:00:56]}  Rxg4 {[%clk 0:01:49]} 41. Rf3 {[%clk 0:00:52]}  f4 {[%clk 0:01:47]} 42. Rh3 {[%clk 0:00:44]}  Kg7 {[%clk 0:01:42]}
43. Be2 {[%clk 0:00:45]}  Rg5 {[%clk 0:01:40]} 44. Bf3 {[%clk 0:00:42]}  Rxe5 {[%clk 0:01:35]} 45. Qd3 {[%clk 0:00:41]}  Bxh3 {[%clk 0:01:33]}
46. gxh3 {[%clk 0:00:42]}  c4 {[%clk 0:01:26]} 47. Qe2 {[%clk 0:00:36]}  Rg5 {[%clk 0:01:24]} 48. Bg4 {[%clk 0:00:37]}  Kf6 {[%clk 0:01:23]}
49. Qf3 {[%clk 0:00:39]}  Rfg8 {[%clk 0:01:20]} 50. Qe2 {[%clk 0:00:22]}  Ke5 {[%clk 0:01:20]} 51. Qc2 {[%clk 0:00:22]}  h5 {[%clk 0:01:20]}
52. Bf3 {[%clk 0:00:20]}  Rg1+ {[%clk 0:01:20]} 53. Kh2 {[%clk 0:00:22]}  Rc1 {[%clk 0:01:20]} 54. Qh7 {[%clk 0:00:22]}  Rc2+ {[%clk 0:01:19]}
55. Qxc2 {[%clk 0:00:18]}  Rg7 {[%clk 0:01:14]} 56. Qd1 {[%clk 0:00:19]}  h4 {[%clk 0:01:13]} 57. Qxd5+ {[%clk 0:00:19]}  Kf6 {[%clk 0:01:15]}
58. Bg4 {[%clk 0:00:20]}  Re7 {[%clk 0:01:15]} 59. Qf5+ {[%clk 0:00:21]}  Kg7 {[%clk 0:01:16]} 60. Bh5 {[%clk 0:00:22]}  Kg8 {[%clk 0:01:14]}
61. Qc8+ {[%clk 0:00:21]}  Kg7 {[%clk 0:01:15]} 62. Qxa6 {[%clk 0:00:22]}  Rd7 {[%clk 0:01:13]} 63. Qg6+ {[%clk 0:00:20]}  Kf8 {[%clk 0:01:14]}
64. Kg2 {[%clk 0:00:19]}  Rd2+ {[%clk 0:01:15]} 65. Kf3 {[%clk 0:00:21]}  Rf2+ {[%clk 0:01:15]} 66. Ke4 {[%clk 0:00:22]}  Ke7 {[%clk 0:01:16]}
67. Qf7+ {[%clk 0:00:22]}  Kd6 {[%clk 0:01:18]} 68. Qd5+ {[%clk 0:00:23]}  Kc7 {[%clk 0:01:19]} 69. Qxb5 {[%clk 0:00:23]}  Kd6 {[%clk 0:01:20]}
70. Qxc4 {[%clk 0:00:24]}  Rd2 {[%clk 0:01:20]} 71. Qb4+ {[%clk 0:00:24]}  Ke6 {[%clk 0:01:20]} 72. Bg4+ {[%clk 0:00:25]}  Kf6 {[%clk 0:01:22]}
73. Qb7 {[%clk 0:00:25]}  Rd6 {[%clk 0:01:19]} 74. a4 {[%clk 0:00:26]}  Bc1 {[%clk 0:01:19]} 75. b4 {[%clk 0:00:27]}  Bd2 {[%clk 0:01:16]}
76. Qc8 {[%clk 0:00:27]} 1-0

[Event "2026 Biel Blitz Open"]
[Site "Biel, CH"]
[Date "2026.07.19"]
[Round "1"]
[White "Liu, Bei"]
[Black "Damen, Josephine"]
[Result "1-0"]
[Board "27"]
[TimeControl "180+2"]
[WhiteFideId "8603596"]
[BlackFideId "1074369"]
[WhiteElo "2170"]
[BlackElo "1766"]
[BlackTitle "WCM"]
[WhiteClock "0:01:12"]
[BlackClock "0:03:02"]
[Variant "Standard"]
[EndDate "2026.07.19"]
[EndTime "11:47:32"]

1. e4 {[%clk 0:03:02]}  e5 {[%clk 0:03:04]} 2. Nf3 {[%clk 0:03:03]}  Nc6 {[%clk 0:03:05]} 3. Bc4 {[%clk 0:03:02]}  Nf6 {[%clk 0:03:06]}
4. Ng5 {[%clk 0:03:03]}  d5 {[%clk 0:03:07]} 5. exd5 {[%clk 0:03:04]}  Na5 {[%clk 0:03:09]} 6. Bb5+ {[%clk 0:03:05]}  c6 {[%clk 0:03:10]}
7. dxc6 {[%clk 0:03:05]}  bxc6 {[%clk 0:03:11]} 8. Bd3 {[%clk 0:03:06]}  h6 {[%clk 0:03:07]} 9. Ne4 {[%clk 0:03:07]}  Nd5 {[%clk 0:03:07]}
10. O-O {[%clk 0:02:58]}  Nf4 {[%clk 0:03:03]} 11. Be2 {[%clk 0:02:51]}  Be7 {[%clk 0:02:30]} 12. d3 {[%clk 0:02:41]}  O-O {[%clk 0:02:23]}
13. Bxf4 {[%clk 0:02:36]}  exf4 {[%clk 0:02:24]} 14. Nbc3 {[%clk 0:02:38]}  f5 {[%clk 0:02:10]} 15. Nd2 {[%clk 0:02:39]}  Rb8 {[%clk 0:01:48]}
16. Nb3 {[%clk 0:02:35]}  Nb7 {[%clk 0:01:34]} 17. d4 {[%clk 0:02:28]}  Nd6 {[%clk 0:01:21]} 18. Bf3 {[%clk 0:02:20]}  Qc7 {[%clk 0:01:05]}
19. Re1 {[%clk 0:02:17]}  Bf6 {[%clk 0:00:53]} 20. Rb1 {[%clk 0:02:08]}  g5 {[%clk 0:00:41]} 21. h3 {[%clk 0:02:05]}  Rf7 {[%clk 0:00:14]}
22. Nc5 {[%clk 0:01:37]}  Rg7 {[%clk 0:00:10]} 23. Ne6 {[%clk 0:01:35]}  Bxe6 {[%clk 0:00:11]} 24. Rxe6 {[%clk 0:01:36]}  Rf8 {[%clk 0:00:04]}
25. Qe2 {[%clk 0:01:16]}  Nf7 {[%clk 0:00:00]} 26. Qd1 {[%clk 0:01:12]} 1-0

[Event "2026 Biel Blitz Open"]
[Site "Biel, CH"]
[Date "2026.07.19"]
[Round "1"]
[White "Schaefer, Gion"]
[Black "Fernandes Barbosa Dos Santos, Gabriel"]
[Result "0-1"]
[Board "28"]
[TimeControl "180+2"]
[WhiteFideId "1362097"]
[BlackFideId "1354388"]
[WhiteElo "1763"]
[BlackElo "2167"]
[BlackTitle "CM"]
[WhiteClock "0:03:02"]
[BlackClock "0:00:07"]
[Variant "Standard"]
[EndDate "2026.07.19"]
[EndTime "11:50:18"]

1. e4 {[%clk 0:03:03]}  c5 {[%clk 0:03:03]} 2. Nf3 {[%clk 0:03:04]}  d6 {[%clk 0:03:04]} 3. d4 {[%clk 0:03:05]}  cxd4 {[%clk 0:03:04]}
4. Nxd4 {[%clk 0:03:06]}  Nf6 {[%clk 0:03:05]} 5. Nc3 {[%clk 0:03:08]}  g6 {[%clk 0:03:05]} 6. Be2 {[%clk 0:03:09]}  Bg7 {[%clk 0:03:06]}
7. O-O {[%clk 0:03:09]}  O-O {[%clk 0:03:06]} 8. Re1 {[%clk 0:03:07]}  Nc6 {[%clk 0:03:07]} 9. Nb3 {[%clk 0:03:07]}  Be6 {[%clk 0:03:06]}
10. h3 {[%clk 0:03:01]}  d5 {[%clk 0:03:03]} 11. exd5 {[%clk 0:02:55]}  Nxd5 {[%clk 0:03:04]} 12. Nxd5 {[%clk 0:02:46]}  Bxd5 {[%clk 0:03:02]}
13. c3 {[%clk 0:02:41]}  e5 {[%clk 0:02:44]} 14. Be3 {[%clk 0:02:40]}  f5 {[%clk 0:02:29]} 15. Bf3 {[%clk 0:02:33]}  e4 {[%clk 0:02:21]}
16. Be2 {[%clk 0:02:34]}  f4 {[%clk 0:02:21]} 17. Bc5 {[%clk 0:02:34]}  f3 {[%clk 0:01:57]} 18. Bf1 {[%clk 0:01:53]}  Re8 {[%clk 0:01:04]}
19. Qc2 {[%clk 0:01:26]}  fxg2 {[%clk 0:00:56]} 20. Bxg2 {[%clk 0:01:25]}  Qg5 {[%clk 0:00:56]} 21. Be3 {[%clk 0:01:11]}  Qh4 {[%clk 0:00:51]}
22. Rad1 {[%clk 0:01:01]}  Rad8 {[%clk 0:00:51]} 23. Qc1 {[%clk 0:00:54]}  h6 {[%clk 0:00:26]} 24. Bf4 {[%clk 0:00:42]}  Ne5 {[%clk 0:00:20]}
25. Bg3 {[%clk 0:00:37]}  Qf6 {[%clk 0:00:19]} 26. Qe3 {[%clk 0:00:31]}  Qf7 {[%clk 0:00:12]} 27. Nd4 {[%clk 0:00:14]}  Kh7 {[%clk 0:00:13]}
28. Qf4 {[%clk 0:00:07]}  Qg8 {[%clk 0:00:12]} 29. Bxe4 {[%clk 0:00:05]}  Bxe4 {[%clk 0:00:12]} 30. Rxe4 {[%clk 0:00:06]}  Rf8 {[%clk 0:00:13]}
31. Qe3 {[%clk 0:00:03]}  Rde8 {[%clk 0:00:09]} 32. Bxe5 {[%clk 0:00:06]}  Qd5 {[%clk 0:00:06]} 33. Bxg7 {[%clk 0:00:05]}  Rxe4 {[%clk 0:00:07]}
34. Qd3 {[%clk 0:00:04]}  Kxg7 {[%clk 0:00:07]} 35. Nf3 {[%clk 0:00:00]} 0-1

[Event "2026 Biel Blitz Open"]
[Site "Biel, CH"]
[Date "2026.07.19"]
[Round "1"]
[White "Maruntis, Patrik-Robert"]
[Black "Jaggy, Enzo"]
[Result "1-0"]
[Board "29"]
[TimeControl "180+2"]
[WhiteFideId "1259997"]
[BlackFideId "1344919"]
[WhiteElo "2167"]
[BlackElo "1761"]
[WhiteClock "0:00:12"]
[BlackClock "0:01:15"]
[Variant "Standard"]
[EndDate "2026.07.19"]
[EndTime "11:47:32"]

1. e4 {[%clk 0:03:01]}  e6 {[%clk 0:03:04]} 2. d4 {[%clk 0:03:01]}  d5 {[%clk 0:03:05]} 3. Nd2 {[%clk 0:02:56]}  dxe4 {[%clk 0:03:05]}
4. Nxe4 {[%clk 0:02:57]}  Nd7 {[%clk 0:03:06]} 5. Nf3 {[%clk 0:02:57]}  Ngf6 {[%clk 0:03:08]} 6. Bg5 {[%clk 0:02:58]}  Be7 {[%clk 0:03:09]}
7. Nxf6+ {[%clk 0:02:43]}  Nxf6 {[%clk 0:03:10]} 8. Bd3 {[%clk 0:02:40]}  h6 {[%clk 0:03:10]} 9. Bd2 {[%clk 0:02:36]}  c5 {[%clk 0:03:07]}
10. dxc5 {[%clk 0:02:33]}  Bxc5 {[%clk 0:03:08]} 11. Qe2 {[%clk 0:02:28]}  O-O {[%clk 0:03:01]} 12. O-O-O {[%clk 0:02:25]}  Qb6 {[%clk 0:02:53]}
13. Ne5 {[%clk 0:02:18]}  Bd7 {[%clk 0:02:44]} 14. Nxd7 {[%clk 0:00:52]}  Nxd7 {[%clk 0:02:44]} 15. f3 {[%clk 0:00:48]}  Bd4 {[%clk 0:02:42]}
16. c3 {[%clk 0:00:46]}  Bf6 {[%clk 0:02:42]} 17. Kb1 {[%clk 0:00:50]}  Nc5 {[%clk 0:02:43]} 18. Bc2 {[%clk 0:00:51]}  a5 {[%clk 0:02:37]}
19. a4 {[%clk 0:00:42]}  Qc6 {[%clk 0:02:31]} 20. Qb5 {[%clk 0:00:40]}  Qxb5 {[%clk 0:02:23]} 21. axb5 {[%clk 0:00:41]}  Rfd8 {[%clk 0:02:21]}
22. Be3 {[%clk 0:00:35]}  b6 {[%clk 0:02:23]} 23. Bxc5 {[%clk 0:00:20]}  bxc5 {[%clk 0:02:24]} 24. Be4 {[%clk 0:00:15]}  a4 {[%clk 0:02:02]}
25. Bxa8 {[%clk 0:00:14]}  Rxa8 {[%clk 0:02:03]} 26. Rd6 {[%clk 0:00:09]}  a3 {[%clk 0:02:02]} 27. b6 {[%clk 0:00:05]}  axb2 {[%clk 0:01:54]}
28. Kxb2 {[%clk 0:00:05]}  Rb8 {[%clk 0:01:55]} 29. Rhd1 {[%clk 0:00:06]}  Kh7 {[%clk 0:01:53]} 30. Kb3 {[%clk 0:00:07]}  Kg6 {[%clk 0:01:49]}
31. Kc4 {[%clk 0:00:08]}  Be7 {[%clk 0:01:46]} 32. Rc6 {[%clk 0:00:08]}  Kf6 {[%clk 0:01:43]} 33. Rb1 {[%clk 0:00:08]}  Ke5 {[%clk 0:01:37]}
34. b7 {[%clk 0:00:07]}  Bd6 {[%clk 0:01:31]} 35. Rc8 {[%clk 0:00:07]}  f5 {[%clk 0:01:21]} 36. Rxb8 {[%clk 0:00:06]}  Bxb8 {[%clk 0:01:19]}
37. Kxc5 {[%clk 0:00:06]}  g5 {[%clk 0:01:19]} 38. c4 {[%clk 0:00:07]}  g4 {[%clk 0:01:20]} 39. Kb6 {[%clk 0:00:08]}  gxf3 {[%clk 0:01:19]}
40. gxf3 {[%clk 0:00:08]}  Kf4 {[%clk 0:01:17]} 41. Rb3 {[%clk 0:00:08]}  e5 {[%clk 0:01:15]} 42. c5 {[%clk 0:00:09]}  e4 {[%clk 0:01:16]}
43. fxe4 {[%clk 0:00:10]}  fxe4 {[%clk 0:01:16]} 44. c6 {[%clk 0:00:10]}  e3 {[%clk 0:01:14]} 45. Rxe3 {[%clk 0:00:11]}  Kxe3 {[%clk 0:01:15]}
46. c7 {[%clk 0:00:12]} 1-0

[Event "2026 Biel Blitz Open"]
[Site "Biel, CH"]
[Date "2026.07.19"]
[Round "1"]
[White "Pinelli, Gian"]
[Black "Savitha Shri B"]
[Result "0-1"]
[Board "30"]
[TimeControl "180+2"]
[WhiteFideId "1348710"]
[BlackFideId "35061887"]
[WhiteElo "1751"]
[BlackElo "2161"]
[BlackTitle "IM"]
[WhiteClock "0:00:15"]
[BlackClock "0:01:20"]
[Variant "Standard"]
[EndDate "2026.07.19"]
[EndTime "11:47:32"]

1. d4 {[%clk 0:03:03]}  Nf6 {[%clk 0:03:04]} 2. c4 {[%clk 0:03:04]}  g6 {[%clk 0:03:05]} 3. Nc3 {[%clk 0:03:05]}  Bg7 {[%clk 0:03:06]}
4. e4 {[%clk 0:03:06]}  d6 {[%clk 0:03:07]} 5. Be2 {[%clk 0:03:06]}  O-O {[%clk 0:03:08]} 6. Bg5 {[%clk 0:03:07]}  Nbd7 {[%clk 0:03:06]}
7. Qd2 {[%clk 0:03:07]}  a6 {[%clk 0:02:32]} 8. f3 {[%clk 0:02:59]}  b5 {[%clk 0:02:34]} 9. cxb5 {[%clk 0:02:55]}  axb5 {[%clk 0:02:34]}
10. Bxb5 {[%clk 0:02:51]}  c5 {[%clk 0:02:35]} 11. d5 {[%clk 0:02:39]}  Ne5 {[%clk 0:02:35]} 12. Be2 {[%clk 0:02:22]}  Qa5 {[%clk 0:02:36]}
13. h4 {[%clk 0:02:10]}  Ba6 {[%clk 0:02:37]} 14. Bxa6 {[%clk 0:01:29]}  Qxa6 {[%clk 0:02:38]} 15. Rd1 {[%clk 0:01:04]}  Rfb8 {[%clk 0:02:38]}
16. b3 {[%clk 0:00:47]}  c4 {[%clk 0:02:37]} 17. bxc4 {[%clk 0:00:48]}  Nxc4 {[%clk 0:02:38]} 18. Qd3 {[%clk 0:00:47]}  Qc8 {[%clk 0:01:50]}
19. Bc1 {[%clk 0:00:37]}  Nh5 {[%clk 0:01:35]} 20. Nge2 {[%clk 0:00:30]}  Qc5 {[%clk 0:01:35]} 21. g4 {[%clk 0:00:18]}  Nf6 {[%clk 0:01:36]}
22. h5 {[%clk 0:00:18]}  Nd7 {[%clk 0:01:30]} 23. hxg6 {[%clk 0:00:13]}  fxg6 {[%clk 0:01:31]} 24. f4 {[%clk 0:00:11]}  Nb2 {[%clk 0:01:18]}
25. Qc2 {[%clk 0:00:12]}  Nxd1 {[%clk 0:01:18]} 26. Qxd1 {[%clk 0:00:12]}  Bxc3+ {[%clk 0:01:19]} 27. Bd2 {[%clk 0:00:13]}  Bxd2+ {[%clk 0:01:19]}
28. Qxd2 {[%clk 0:00:15]}  Rb1+ {[%clk 0:01:20]} 0-1

[Event "2026 Biel Blitz Open"]
[Site "Biel, CH"]
[Date "2026.07.19"]
[Round "1"]
[White "Kelecevic, Nedeljko"]
[Black "Chantrell, Paul"]
[Result "1-0"]
[Board "31"]
[TimeControl "180+2"]
[WhiteFideId "14400537"]
[BlackFideId "451967"]
[WhiteElo "2150"]
[BlackElo "1749"]
[WhiteTitle "IM"]
[WhiteClock "0:01:08"]
[BlackClock "0:00:10"]
[Variant "Standard"]
[EndDate "2026.07.19"]
[EndTime "11:47:32"]

1. d4 {[%clk 0:03:01]}  d5 {[%clk 0:03:03]} 2. Nf3 {[%clk 0:03:02]}  Nf6 {[%clk 0:03:03]} 3. c4 {[%clk 0:03:03]}  c6 {[%clk 0:03:04]}
4. Nc3 {[%clk 0:03:02]}  dxc4 {[%clk 0:03:03]} 5. a4 {[%clk 0:03:04]}  Bf5 {[%clk 0:03:00]} 6. Ne5 {[%clk 0:03:05]}  Nbd7 {[%clk 0:02:59]}
7. Nxc4 {[%clk 0:03:05]}  Qc7 {[%clk 0:03:01]} 8. g3 {[%clk 0:03:05]}  e5 {[%clk 0:03:01]} 9. dxe5 {[%clk 0:03:06]}  Nxe5 {[%clk 0:03:02]}
10. Bf4 {[%clk 0:03:06]}  Nfd7 {[%clk 0:02:57]} 11. Qc1 {[%clk 0:02:58]}  Bb4 {[%clk 0:02:25]} 12. Bg2 {[%clk 0:02:48]}  O-O {[%clk 0:02:20]}
13. O-O {[%clk 0:02:41]}  Bxc3 {[%clk 0:02:18]} 14. Qxc3 {[%clk 0:02:41]}  f6 {[%clk 0:02:13]} 15. Nxe5 {[%clk 0:02:40]}  Nxe5 {[%clk 0:02:05]}
16. Bxe5 {[%clk 0:02:40]}  Qxe5 {[%clk 0:02:07]} 17. Qxe5 {[%clk 0:02:41]}  fxe5 {[%clk 0:02:07]} 18. a5 {[%clk 0:02:37]}  e4 {[%clk 0:01:54]}
19. Rfd1 {[%clk 0:02:13]}  Rfd8 {[%clk 0:01:54]} 20. h3 {[%clk 0:01:57]}  Rd5 {[%clk 0:01:48]} 21. g4 {[%clk 0:01:42]}  Bg6 {[%clk 0:01:48]}
22. f4 {[%clk 0:01:27]}  exf3 {[%clk 0:01:34]} 23. Bxf3 {[%clk 0:01:28]}  Rdd8 {[%clk 0:01:27]} 24. a6 {[%clk 0:01:28]}  Rxd1+ {[%clk 0:01:15]}
25. Rxd1 {[%clk 0:01:29]}  bxa6 {[%clk 0:01:13]} 26. Bxc6 {[%clk 0:01:28]}  Rb8 {[%clk 0:01:09]} 27. Bd5+ {[%clk 0:01:28]}  Kf8 {[%clk 0:00:59]}
28. b3 {[%clk 0:01:29]}  Rd8 {[%clk 0:00:47]} 29. e4 {[%clk 0:01:19]}  Bxe4 {[%clk 0:00:44]} 30. Rf1+ {[%clk 0:01:21]}  Ke7 {[%clk 0:00:38]}
31. Bxe4 {[%clk 0:01:22]}  g6 {[%clk 0:00:31]} 32. Rf3 {[%clk 0:01:14]}  a5 {[%clk 0:00:20]} 33. Bd3 {[%clk 0:01:11]}  Rd7 {[%clk 0:00:16]}
34. Bc4 {[%clk 0:01:10]}  Kd6 {[%clk 0:00:10]} 35. Rd3+ {[%clk 0:01:08]} 1-0